[Event "13th All African Mixed Team Rapid-ch 202"]
[Site "Accra"]
[Date "2024.03.09"]
[Round "5.12"]
[White "Mongeli, Sasha"]
[Black "Vilhete, Vania Fausto Da T."]
[Result "1/2-1/2"]
[ECO "D02"]
[WhiteElo "1858"]
[BlackElo "1829"]
[Annotator "NA RC"]
[PlyCount "111"]
[EventDate "2024.03.07"]
[EventType "rapid"]
[EventCountry "GHA"]
[SourceTitle "playchess.com"]
[Source "ChessBase"]
[SourceQuality "1"]
[TimeControl "900+10"]

1. d4 {[%emt 0:00:02]} d5 {[%emt 0:00:01]} 2. Nf3 {[%emt 0:00:03]} e6 {[%emt 0:00:05]} 3. Bf4 {[%emt 0:00:24]} c5 {[%emt 0:00:19]} 4. Nbd2 {[%emt 0:00:48]} Nf6 {[%emt 0:00:16]} 5. e3 {[%emt 0:00:30]} Be7 {[%emt 0:00:10]} 6. c3 {[%emt 0:00:22]} O-O {[%emt 0:00:06]} 7. Ne5 {[%emt 0:01:13]} Nc6 {[%emt 0:00:19]} 8. Be2 {[%emt 0:00:57]} Bd7 {[%emt 0:00:55]} 9. O-O {[%emt 0:00:12]} Rc8 {[%emt 0:00:13]} 10. h3 {[%emt 0:01:45]} Qb6 {[%emt 0:01:01]} 11. dxc5 {[%emt 0:02:03]} Bxc5 {[%emt 0:01:02]} 12. Nxc6 {[%emt 0:00:43]} Bxc6 {[%emt 0:00:29]} 13. Nb3 {[%emt 0:00:03]} Be7 {[%emt 0:00:14]} 14. Qd4 {[%emt 0:00:31]} Qxd4 {[%emt 0:00:48]} 15. cxd4 {[%emt 0:00:38]} Ba4 {[%emt 0:01:00]} 16. Rfc1 {[%emt 0:00:10]} Bxb3 {[%emt 0:02:31]} 17. axb3 {[%emt 0:00:03]} a6 {[%emt 0:00:01]} 18. Bc7 {[%emt 0:01:23]} Ne4 {[%emt 0:00:17]} 19. Rc2 {[%emt 0:00:46]} Nd2 {[%emt 0:01:16]} 20. Rxd2 {[%emt 0:02:22]} Rxc7 {[%emt 0:00:04]} 21. Bd3 {[%emt 0:00:15]} Rfc8 {[%emt 0:00:13]} 22. Kf1 {[%emt 0:00:04]} Bb4 {[%emt 0:00:12]} 23. Rdd1 {[%emt 0:00:11]} a5 {[%emt 0:00:23]} 24. Ke2 {[%emt 0:00:03]} g6 {[%emt 0:00:27]} 25. Rdb1 {[%emt 0:00:44]} Kg7 {[%emt 0:00:15]} 26. Kd1 {[%emt 0:00:03]} f6 {[%emt 0:01:19]} 27. Rc1 {[%emt 0:00:15]} e5 {[%emt 0:00:49]} 28. dxe5 {[%emt 0:00:15]} fxe5 {[%emt 0:00:04]} 29. f3 {[%emt 0:00:17]} Kf6 {[%emt 0:00:20]} 30. Rxc7 {[%emt 0:03:05]} Rxc7 {[%emt 0:00:02]} 31. Rc1 {[%emt 0:00:00]} Rxc1+ {[%emt 0:02:03]} 32. Kxc1 {[%emt 0:00:00]} d4 {[%emt 0:00:24]} 33. exd4 {[%emt 0:00:00]} exd4 {[%emt 0:00:02]} 34. Be4 {[%emt 0:00:00]} b6 {[%emt 0:00:02]} 35. Kc2 {[%emt 0:00:00]} h6 {[%emt 0:00:14]} 36. Kd3 {[%emt 0:00:00]} Bc5 {[%emt 0:00:02]} 37. f4 {[%emt 0:00:00]} Bd6 {[%emt 0:00:44]} 38. Kxd4 {[%emt 0:00:00]} Bxf4 {[%emt 0:00:02]} 39. Kd5 {[%emt 0:00:00]} Be3 {[%emt 0:00:11]} 40. Kc6 {[%emt 0:00:00]} g5 {[%emt 0:00:02]} 41. Kb5 {[%emt 0:00:00]} h5 {[%emt 0:00:03]} 42. Bf3 {[%emt 0:00:00]} h4 {[%emt 0:00:15]} 43. b4 {[%emt 0:00:00]} axb4 {[%emt 0:00:25]} 44. Kxb4 {[%emt 0:00:00]} Bc5+ {[%emt 0:00:02]} 45. Kc4 {[%emt 0:00:00]} Kf5 {[%emt 0:00:08]} 46. b4 {[%emt 0:00:17]} Be3 {[%emt 0:00:09]} 47. Kd5 {[%emt 0:00:11]} Bd2 {[%emt 0:00:13]} 48. b5 {[%emt 0:00:10]} Be3 {[%emt 0:00:05]} 49. Kd6 {[%emt 0:00:28]} Kf4 {[%emt 0:00:05]} 50. Ke6 {[%emt 0:00:06]} Bc5 {[%emt 0:00:04]} 51. Kf6 {[%emt 0:00:09]} Bf2 {[%emt 0:00:11]} 52. Kg6 {[%emt 0:00:05]} Bc5 {[%emt 0:00:05]} 53. Bc6 {[%emt 0:00:23]} Bf2 {[%emt 0:00:05]} 54. Bf3 {[%emt 0:00:03]} Bc5 {[%emt 0:00:02]} 55. Bc6 {[%emt 0:00:02]} Bf2 {[%emt 0:00:01]} 56. Bf3 {[%emt 0:00:02]} 1/2-1/2

[Event "13th All African Mixed Team Rapid-ch 202"]
[Site "Accra"]
[Date "2024.03.09"]
[Round "5.13"]
[White "Pereira, Sergio Murilo de Ara"]
[Black "Cogan, Nicolas"]
[Result "0-1"]
[ECO "B04"]
[WhiteElo "2115"]
[BlackElo "2070"]
[Annotator "RC"]
[PlyCount "60"]
[EventDate "2024.03.07"]
[EventType "rapid"]
[EventCountry "GHA"]
[SourceTitle "playchess.com"]
[Source "ChessBase"]
[SourceQuality "1"]
[TimeControl "900+10"]

1. e4 {[%emt 0:00:10]} Nf6 {[%emt 0:00:45]} 2. e5 {[%emt 0:00:02]} Nd5 {[%emt 0:00:02]} 3. c4 {[%emt 0:00:02]} Nb6 {[%emt 0:00:01]} 4. Nc3 {[%emt 0:00:01]} d6 {[%emt 0:00:09]} 5. Nf3 {[%emt 0:00:02]} g6 {[%emt 0:01:02]} 6. exd6 {[%emt 0:01:11]} cxd6 {[%emt 0:00:02]} 7. d4 {[%emt 0:00:23]} Bg7 {[%emt 0:00:10]} 8. Be3 {[%emt 0:00:33]} O-O {[%emt 0:00:57]} 9. Qb3 {[%emt 0:03:01]} a5 {[%emt 0:02:57]} 10. c5 {[%emt 0:04:09]} N6d7 {[%emt 0:00:34]} 11. cxd6 {[%emt 0:01:42]} exd6 {[%emt 0:00:02]} 12. Bc4 {[%emt 0:00:09]} Nb6 {[%emt 0:00:41]} 13. Bg5 {[%emt 0:01:22]} Qc7 {[%emt 0:00:31]} 14. Be2 {[%emt 0:00:18]} a4 {[%emt 0:00:49]} 15. Qd1 {[%emt 0:00:37]} Bd7 {[%emt 0:00:44]} 16. Rc1 {[%emt 0:00:19]} Nc4 {[%emt 0:06:03]} 17. b3 {[%emt 0:00:59]} Nb2 {[%emt 0:00:46]} 18. Qd2 {[%emt 0:00:35]} a3 {[%emt 0:00:03]} 19. O-O {[%emt 0:01:17]} Qa5 {[%emt 0:01:08]} 20. Be7 {[%emt 0:00:33]} Re8 {[%emt 0:00:01]} 21. Bxd6 {[%emt 0:00:13]} Nc6 {[%emt 0:00:06]} 22. Rfe1 {[%emt 0:00:29]} Bg4 {[%emt 0:00:36]} 23. Nb5 {[%emt 0:00:41]} Qxd2 {[%emt 0:00:11]} 24. Nxd2 {[%emt 0:00:01]} Rxe2 {[%emt 0:00:12]} 25. Rxe2 {[%emt 0:00:14]} Bxe2 {[%emt 0:00:03]} 26. Bxa3 {[%emt 0:00:12]} Bxb5 {[%emt 0:00:08]} 27. Bxb2 {[%emt 0:00:01]} Rxa2 {[%emt 0:00:02]} 28. Bc3 {[%emt 0:00:23]} Bxd4 {[%emt 0:00:09]} 29. Bxd4 {[%emt 0:00:10]} Nxd4 {[%emt 0:00:02]} 30. Rd1 {[%emt 0:00:01]} Be2 {[%emt 0:00:06]} 0-1

[Event "13th All African Mixed Team Rapid-ch 202"]
[Site "Accra"]
[Date "2024.03.09"]
[Round "5.15"]
[White "Frempong-Smart Daniel"]
[Black "Fomevor, Cephas Clinton"]
[Result "1/2-1/2"]
[ECO "D12"]
[WhiteElo "1877"]
[BlackElo "1887"]
[Annotator "NA RC"]
[PlyCount "85"]
[EventDate "2024.03.07"]
[EventType "rapid"]
[EventCountry "GHA"]
[SourceTitle "playchess.com"]
[Source "ChessBase"]
[SourceQuality "1"]
[TimeControl "900+10"]

1. Nf3 {[%emt 0:00:03]} d5 {[%emt 0:00:02]} 2. b3 {[%emt 0:00:08]} Nf6 {[%emt 0:00:02]} 3. Bb2 {[%emt 0:00:02]} Bf5 {[%emt 0:00:04]} 4. e3 {[%emt 0:00:08]} e6 {[%emt 0:00:03]} 5. c4 {[%emt 0:00:03]} c6 {[%emt 0:00:02]} 6. Be2 {[%emt 0:00:07]} Be7 {[%emt 0:00:10]} 7. O-O {[%emt 0:00:07]} h6 {[%emt 0:00:04]} 8. d4 {[%emt 0:00:03]} O-O {[%emt 0:00:05]} 9. Nc3 {[%emt 0:00:08]} Nbd7 {[%emt 0:00:11]} 10. Re1 {[%emt 0:02:25]} Qa5 {[%emt 0:01:17]} 11. a3 {[%emt 0:00:24]} Qc7 {[%emt 0:00:27]} 12. Bd3 {[%emt 0:00:35]} Bxd3 {[%emt 0:01:05]} 13. Qxd3 {[%emt 0:00:04]} Rac8 {[%emt 0:00:18]} 14. e4 {[%emt 0:00:07]} dxe4 {[%emt 0:00:05]} 15. Nxe4 {[%emt 0:00:04]} Nxe4 {[%emt 0:00:06]} 16. Qxe4 {[%emt 0:00:15]} Bf6 {[%emt 0:00:57]} 17. Qe2 {[%emt 0:02:26]} Rfd8 {[%emt 0:01:27]} 18. Rad1 {[%emt 0:00:24]} Nf8 {[%emt 0:01:16]} 19. b4 {[%emt 0:00:35]} Ng6 {[%emt 0:00:30]} 20. g3 {[%emt 0:00:04]} Ne7 {[%emt 0:00:55]} 21. Kg2 {[%emt 0:02:52]} Nf5 {[%emt 0:01:57]} 22. Qe4 {[%emt 0:00:55]} Nd6 {[%emt 0:01:03]} 23. Qe2 {[%emt 0:00:23]} Nf5 {[%emt 0:00:51]} 24. Qe4 {[%emt 0:00:05]} Nd6 {[%emt 0:00:48]} 25. Qd3 {[%emt 0:01:34]} Ne8 {[%emt 0:01:30]} 26. Re2 {[%emt 0:01:04]} Rd7 {[%emt 0:00:24]} 27. Red2 {[%emt 0:00:35]} Rcd8 {[%emt 0:00:20]} 28. Qe3 {[%emt 0:00:36]} Nd6 {[%emt 0:00:36]} 29. Qe2 {[%emt 0:01:12]} Nf5 {[%emt 0:00:45]} 30. Ne5 {[%emt 0:00:19]} Bxe5 {[%emt 0:00:47]} 31. dxe5 {[%emt 0:00:02]} a6 {[%emt 0:00:26]} 32. c5 {[%emt 0:00:44]} Rd5 {[%emt 0:00:24]} 33. Rxd5 {[%emt 0:00:16]} Rxd5 {[%emt 0:00:17]} 34. Rxd5 {[%emt 0:00:05]} exd5 {[%emt 0:00:54]} 35. e6 {[%emt 0:00:46]} fxe6 {[%emt 0:00:18]} 36. Qxe6+ {[%emt 0:00:04]} Qf7 {[%emt 0:00:01]} 37. Qxf7+ {[%emt 0:00:43]} Kxf7 {[%emt 0:00:01]} 38. Kf3 {[%emt 0:00:06]} g6 {[%emt 0:00:09]} 39. Kf4 {[%emt 0:00:10]} Ke6 {[%emt 0:00:05]} 40. h4 {[%emt 0:00:20]} Ne7 {[%emt 0:00:29]} 41. Bd4 {[%emt 0:00:15]} Nf5 {[%emt 0:00:12]} 42. Bb2 {[%emt 0:00:52]} Ne7 {[%emt 0:00:47]} 43. Bc1 {[%emt 0:00:00]} 1/2-1/2

[Event "13th All African Mixed Team Rapid-ch 202"]
[Site "Accra"]
[Date "2024.03.09"]
[Round "5.16"]
[White "Gertrude Banini"]
[Black "Benson, Maud"]
[Result "1/2-1/2"]
[ECO "D30"]
[WhiteElo "1681"]
[BlackElo "1664"]
[Annotator "NA RC"]
[PlyCount "140"]
[EventDate "2024.03.07"]
[EventType "rapid"]
[EventCountry "GHA"]
[SourceTitle "playchess.com"]
[Source "ChessBase"]
[SourceQuality "1"]
[TimeControl "900+10"]

1. d4 {[%emt 0:00:05]} d5 {[%emt 0:00:07]} 2. c4 {[%emt 0:00:07]} e6 {[%emt 0:00:03]} 3. cxd5 {[%emt 0:00:04]} exd5 {[%emt 0:00:02]} 4. Nf3 {[%emt 0:00:03]} Nf6 {[%emt 0:00:03]} 5. Bg5 {[%emt 0:00:04]} g6 {[%emt 0:00:03]} 6. Nc3 {[%emt 0:00:07]} c6 {[%emt 0:00:09]} 7. e3 {[%emt 0:00:09]} Bg7 {[%emt 0:00:03]} 8. Bd3 {[%emt 0:00:13]} O-O {[%emt 0:00:08]} 9. O-O {[%emt 0:00:06]} Re8 {[%emt 0:00:09]} 10. a3 {[%emt 0:00:21]} Nbd7 {[%emt 0:00:06]} 11. b4 {[%emt 0:00:10]} a6 {[%emt 0:00:02]} 12. Na4 {[%emt 0:00:56]} h6 {[%emt 0:00:03]} 13. Bh4 {[%emt 0:00:02]} g5 {[%emt 0:00:13]} 14. Bg3 {[%emt 0:00:03]} Ne4 {[%emt 0:00:07]} 15. Bxe4 {[%emt 0:00:36]} dxe4 {[%emt 0:00:02]} 16. Nd2 {[%emt 0:00:08]} Nf6 {[%emt 0:00:20]} 17. Qc2 {[%emt 0:01:03]} Bf5 {[%emt 0:00:15]} 18. Nc5 {[%emt 0:00:31]} b6 {[%emt 0:00:12]} 19. Na4 {[%emt 0:00:44]} Rc8 {[%emt 0:00:31]} 20. Rfc1 {[%emt 0:00:34]} Nd5 {[%emt 0:15:52]} 21. Nc3 {[%emt 0:12:34]} Qe7 {[%emt 0:00:00]} 22. Qb3 {[%emt 0:00:00]} Nxc3 {[%emt 0:00:00]} 23. Rxc3 {[%emt 0:00:00]} c5 {[%emt 0:00:00]} 24. Rac1 {[%emt 0:00:00]} cxd4 {[%emt 0:00:00]} 25. Rxc8 {[%emt 0:00:00]} Rxc8 {[%emt 0:00:00]} 26. Rxc8+ {[%emt 0:00:50]} Bxc8 {[%emt 0:01:00]} 27. exd4 {[%emt 0:00:00]} Bxd4 {[%emt 0:00:00]} 28. Qc4 {[%emt 0:00:00]} Qd8 {[%emt 0:00:00]} 29. Nxe4 {[%emt 0:00:00]} Bg7 {[%emt 0:00:00]} 30. h3 {[%emt 0:00:00]} a5 {[%emt 0:00:00]} 31. bxa5 {[%emt 0:00:00]} bxa5 {[%emt 0:00:00]} 32. Bc7 {[%emt 0:00:00]} Qd1+ {[%emt 0:00:00]} 33. Kh2 {[%emt 0:00:00]} Be6 {[%emt 0:00:00]} 34. Qc5 {[%emt 0:00:00]} Qa4 {[%emt 0:00:00]} 35. f3 {[%emt 0:00:31]} Bf8 {[%emt 0:00:00]} 36. Nf6+ {[%emt 0:00:32]} Kg7 {[%emt 0:00:00]} 37. Qe5 {[%emt 0:00:03]} Qf4+ {[%emt 0:01:50]} 38. Qxf4 {[%emt 0:00:18]} gxf4 {[%emt 0:00:00]} 39. Nh5+ {[%emt 0:00:05]} Kg6 {[%emt 0:00:20]} 40. Nxf4+ {[%emt 0:00:06]} Kf6 {[%emt 0:00:00]} 41. Nxe6 {[%emt 0:00:09]} Kxe6 {[%emt 0:00:00]} 42. Bxa5 {[%emt 0:00:05]} Bxa3 {[%emt 0:00:00]} 43. Bc3 {[%emt 0:00:11]} h5 {[%emt 0:00:00]} 44. Kg3 {[%emt 0:00:07]} Kf5 {[%emt 0:00:00]} 45. Kh4 {[%emt 0:00:15]} Kg6 {[%emt 0:00:00]} 46. g4 {[%emt 0:00:07]} Be7+ {[%emt 0:00:00]} 47. Kg3 {[%emt 0:00:01]} Bd6+ {[%emt 0:00:00]} 48. f4 {[%emt 0:00:02]} hxg4 {[%emt 0:00:00]} 49. hxg4 {[%emt 0:00:02]} f6 {[%emt 0:00:00]} 50. Kf3 {[%emt 0:00:25]} Bc7 {[%emt 0:00:00]} 51. Ke4 {[%emt 0:00:03]} Bb8 {[%emt 0:00:00]} 52. Bd2 {[%emt 0:00:01]} Bc7 {[%emt 0:00:00]} 53. Bc3 {[%emt 0:00:21]} Bb8 {[%emt 0:00:00]} 54. Bd2 {[%emt 0:00:06]} Kf7 {[%emt 0:00:00]} 55. Kf5 {[%emt 0:00:09]} Bc7 {[%emt 0:00:00]} 56. Bc3 {[%emt 0:00:04]} Bd8 {[%emt 0:00:00]} 57. Bb4 {[%emt 0:00:06]} Bc7 {[%emt 0:00:05]} 58. Bc5 {[%emt 0:00:03]} Ba5 {[%emt 0:00:10]} 59. Bd4 {[%emt 0:00:07]} Bd8 {[%emt 0:00:01]} 60. Bc5 {[%emt 0:00:01]} Ba5 {[%emt 0:00:03]} 61. Bd6 {[%emt 0:00:02]} Bd8 {[%emt 0:00:04]} 62. Bc5 {[%emt 0:00:00]} Ba5 {[%emt 0:00:02]} 63. Bd6 {[%emt 0:00:02]} Bd8 {[%emt 0:00:03]} 64. Bb8 {[%emt 0:00:10]} Bb6 {[%emt 0:00:05]} 65. Bd6 {[%emt 0:00:04]} Bd8 {[%emt 0:00:05]} 66. Bc5 {[%emt 0:00:04]} Ba5 {[%emt 0:00:06]} 67. g5 {[%emt 0:00:01]} fxg5 {[%emt 0:00:18]} 68. fxg5 {[%emt 0:00:02]} Bc3 {[%emt 0:00:18]} 69. Bd6 {[%emt 0:00:07]} Kg8 {[%emt 0:00:01]} 70. Kg6 {[%emt 0:00:08]} Bd2 {[%emt 0:00:07]} 1/2-1/2

[Event "13th All African Mixed Team Rapid-ch 202"]
[Site "Accra"]
[Date "2024.03.09"]
[Round "5.17"]
[White "Pedro Manuel Envo Engonga Avom"]
[Black "Akpa Prince"]
[Result "0-1"]
[ECO "B34"]
[WhiteElo "1702"]
[BlackElo "1845"]
[Annotator "NA RC"]
[PlyCount "61"]
[EventDate "2024.03.07"]
[EventType "rapid"]
[EventCountry "GHA"]
[SourceTitle "playchess.com"]
[Source "ChessBase"]
[SourceQuality "1"]
[TimeControl "900+10"]

1. e4 {[%emt 0:00:01]} c5 {[%emt 0:00:03]} 2. Nf3 {[%emt 0:00:07]} Nc6 {[%emt 0:00:02]} 3. d4 {[%emt 0:00:01]} cxd4 {[%emt 0:00:04]} 4. Nxd4 {[%emt 0:00:02]} g6 {[%emt 0:00:02]} 5. Nc3 {[%emt 0:00:01]} Bg7 {[%emt 0:00:04]} 6. Be3 {[%emt 0:00:01]} Nf6 {[%emt 0:00:05]} 7. f3 {[%emt 0:00:12]} O-O {[%emt 0:00:44]} 8. Qd2 {[%emt 0:00:01]} d5 {[%emt 0:00:04]} 9. O-O-O {[%emt 0:01:43]} dxe4 {[%emt 0:00:43]} 10. h4 {[%emt 0:00:03]} exf3 {[%emt 0:00:16]} 11. gxf3 {[%emt 0:00:44]} e5 {[%emt 0:00:02]} 12. Nb3 {[%emt 0:01:31]} Qxd2+ {[%emt 0:00:03]} 13. Rxd2 {[%emt 0:00:01]} Bf5 {[%emt 0:00:17]} 14. a3 {[%emt 0:00:41]} Rfd8 {[%emt 0:00:44]} 15. h5 {[%emt 0:01:06]} Rxd2 {[%emt 0:00:08]} 16. Bxd2 {[%emt 0:00:31]} Nxh5 {[%emt 0:00:08]} 17. Bc4 {[%emt 0:00:46]} Rc8 {[%emt 0:01:15]} 18. Nd5 {[%emt 0:00:25]} Nf6 {[%emt 0:00:21]} 19. Ne3 {[%emt 0:00:25]} Nd4 {[%emt 0:00:34]} 20. Nxd4 {[%emt 0:02:05]} exd4 {[%emt 0:00:11]} 21. Nxf5 {[%emt 0:00:07]} Rxc4 {[%emt 0:01:02]} 22. b3 {[%emt 0:00:14]} Rc5 {[%emt 0:01:08]} 23. Nxd4 {[%emt 0:01:35]} Nd5 {[%emt 0:00:32]} 24. Ne2 {[%emt 0:01:30]} h5 {[%emt 0:00:34]} 25. Ng3 {[%emt 0:00:39]} Bc3 {[%emt 0:01:32]} 26. Bh6 {[%emt 0:01:47]} Kh7 {[%emt 0:00:29]} 27. Bf8 {[%emt 0:00:03]} Rc8 {[%emt 0:00:24]} 28. Bd6 {[%emt 0:00:28]} Rc6 {[%emt 0:01:03]} 29. Bb8 {[%emt 0:00:32]} Ne3 {[%emt 0:01:55]} 30. Bf4 {[%emt 0:02:33]} Nxc2 {[%emt 0:00:57]} 31. Kb1 {[%emt 0:00:25]} 0-1

[Event "13th All African Mixed Team Rapid-ch 202"]
[Site "Accra"]
[Date "2024.03.09"]
[Round "6.1"]
[White "KIGIGHA, Bomo Lovet"]
[Black "Amin, Bassem"]
[Result "0-1"]
[ECO "E60"]
[WhiteElo "2231"]
[BlackElo "2670"]
[Annotator "TA"]
[PlyCount "68"]
[EventDate "2024.03.07"]
[EventType "rapid"]
[EventCountry "GHA"]
[SourceTitle "playchess.com"]
[Source "ChessBase"]
[SourceQuality "1"]
[TimeControl "900+10"]

{[%evp 15,68,0,0,0,2,-86,-100,-87,-95,-88,-106,-87,-97,-89,-79,-77,-87,-89,-79,-65,-54,-48,-47,-49,-60,-50,-53,-848,-45,-5389,-5389,-1674,-537,-537,-531,-512,-508,-766,-765,-822,-732,-543,-391,-397,-397,-5117,-5087,-5385,-5306,-5314,-5310,-5102,-5073,-2184,-1536]} 1. Nf3 {[%emt 0:00:02]} Nf6 {[%emt 0:00:04]} 2. c4 {[%emt 0:00:01]} g6 {[%emt 0:00:01]} 3. b3 {[%emt 0:00:05]} Bg7 {[%emt 0:00:02]} 4. Bb2 {[%emt 0:00:01]} O-O {[%emt 0:00:02]} 5. g3 {[%emt 0:00:01]} d6 {[%emt 0:00:05][%cal Bd7d6,Bd6e5,Be5e4,Be4e3][%mdl 32]} 6. d4 {[%emt 0:00:01]} Nbd7 {[%emt 0:00:11]} 7. Bg2 {[%emt 0:00:01]} e5 {[%emt 0:00:02]} 8. dxe5 {[%emt 0:00:01]} dxe5 {[%emt 0:00:01]} 9. O-O {[%emt 0:00:06]} e4 {[%emt 0:00:13]} 10. Ne5 {[%emt 0:01:27] [#]} (10. Nd4 $11 {bleibt in der Remisbreite.}) 10... Ng4 $1 {[%emt 0:01:51]} 11. Nxd7 {[%emt 0:01:42] Und Bxg7 würde nun gewinnen. Schwarz steht besser.} Bxb2 {[%emt 0:00:03]} 12. Nxf8 {[%emt 0:00:01]} Qxf8 {[%emt 0:00:02]} 13. Nd2 {[%emt 0:00:05] Schwarz muss nun Rb1 beachten.} e3 {[%emt 0:04:25] ...Bf5 wäre nun fies.} 14. Ne4 {[%emt 0:00:29]} Bf5 $1 {[%emt 0:01:04] Zielt auf ...Bxe4 ab.} (14... exf2+ $6 15. Nxf2 Ne3 16. Qd2 Bxa1 17. Qxe3 $11) 15. f3 {[%emt 0:03:39] [#]} Bxe4 $1 {[%emt 0:00:16] Schwarz steht deutlich aktiver.} 16. fxg4 {[%emt 0:01:06] [#]} Bxg2 {[%emt 0:00:04]} 17. Kxg2 {[%emt 0:00:01]} Rd8 $1 {[%emt 0:00:07]} 18. Qe1 {[%emt 0:02:31]} Bxa1 {[%emt 0:00:03]} 19. Qxa1 $15 {[%emt 0:00:02][%mdl 4096] Endspiel. KQR-KQR} Rd2 {[%emt 0:00:02]} 20. Kf3 {[%emt 0:00:22]} Qe7 $36 {[%emt 0:00:52][%mdl 2048] Verhindert Qe5. Schwarz kämpft um Vorteil.} 21. Rd1 $2 {[%emt 0:01:38][%mdl 8192]} (21. h3 $15) 21... Qd6 $2 {[%emt 0:01:03]} (21... f5 $19 {[%csl Gf5][%cal Re7e4]} 22. Kf4 Qd6+ (22... Rxe2 $2 23. Qe5 $19) 23. Qe5 Qxe5+ (23... Rxd1 $2 24. Qxd6 Rxd6 25. gxf5 $19) 24. Kxe5 Rxd1 25. gxf5 gxf5 26. Kxf5 Rd2 (26... Rf1+ $2 27. Ke4 $19)) 22. Rxd2 $4 {[%emt 0:00:33][%mdl 8192]} (22. Rf1 $15) 22... exd2 {[%emt 0:00:03] KQ-KQ} (22... Qxd2 23. Qb1 $14) 23. Qd1 {[%emt 0:00:01]} Qd4 {[%emt 0:00:05]} (23... Qf6+ $142 24. Ke4 Qc3) 24. e3 $19 {[%emt 0:00:52]} Qd3 {[%emt 0:00:02]} 25. Kf2 {[%emt 0:00:29]} Kf8 {[%emt 0:00:13]} 26. g5 {[%emt 0:00:36]} (26. Kf3 $142) 26... a5 {[%emt 0:00:13]} 27. a3 {[%emt 0:00:04]} Ke7 {[%emt 0:00:12]} 28. b4 {[%emt 0:00:57]} axb4 {[%emt 0:01:40]} (28... Qxc4 29. Qxd2 axb4 30. axb4 $15) 29. axb4 {[%emt 0:00:01]} Qc3 {[%emt 0:00:18]} (29... Qxc4 30. Qxd2 c5 31. bxc5 Qxc5 32. h4 $19) 30. b5 $2 {[%emt 0:02:04]} (30. Ke2 Qxc4+ (30... Qxb4 31. Qc2 $15) 31. Kxd2 Qxb4+ 32. Kc1) 30... Qc1 {[%emt 0:00:09] Schwarz steht klar auf Gewinn.} (30... Qxc4 31. Qxd2 Qxb5 32. Qc3 Qf5+ (32... Qxg5 33. Qxc7+ Kf8 34. Qb8+ Kg7 35. Qxb7 $11) 33. Ke2 $19) 31. Ke2 {[%emt 0:00:06]} Qxc4+ {[%emt 0:00:03]} 32. Kxd2 {[%emt 0:00:02]} Qd5+ {[%emt 0:00:01]} 33. Kc1 {[%emt 0:00:23]} Qxd1+ {[%emt 0:00:02]} ({Nicht} 33... Qxg5 34. Qd3 $17) 34. Kxd1 {[%emt 0:00:06]} Kd6 {[%emt 0:00:01] Gewichteter Fehlerwert: Weiß=1.00/Schwarz=0.53.  Verlustzug:     	Weiß=2     	---        Gewinn verpasst:   	---       	Schwarz=1     Fehler:       	Weiß=3     	---        OK:         	Weiß=8     	Schwarz=9     Bester:       	Weiß=2     	Schwarz=2     Stark:        	---       	Schwarz=3} 0-1

[Event "13th All African Mixed Team Rapid-ch 202"]
[Site "Accra"]
[Date "2024.03.09"]
[Round "6.2"]
[White "Wafa, Shahenda"]
[Black "PEACE SAMSON"]
[Result "1-0"]
[ECO "B33"]
[WhiteElo "2083"]
[BlackElo "1870"]
[Annotator "RC"]
[PlyCount "53"]
[EventDate "2024.03.07"]
[EventType "rapid"]
[EventCountry "GHA"]
[SourceTitle "playchess.com"]
[Source "ChessBase"]
[SourceQuality "1"]
[TimeControl "900+10"]

1. e4 {[%emt 0:00:02]} c5 {[%emt 0:00:02]} 2. Nf3 {[%emt 0:00:02]} Nc6 {[%emt 0:00:04]} 3. d4 {[%emt 0:00:05]} cxd4 {[%emt 0:00:05]} 4. Nxd4 {[%emt 0:00:02]} Qb6 {[%emt 0:01:13]} 5. Nb3 {[%emt 0:00:52]} Nf6 {[%emt 0:00:13]} 6. Nc3 {[%emt 0:00:09]} d6 {[%emt 0:00:27]} 7. Be3 {[%emt 0:00:42]} Qd8 {[%emt 0:00:02]} 8. Be2 {[%emt 0:00:15]} g6 {[%emt 0:00:02]} 9. f3 {[%emt 0:00:57]} a6 {[%emt 0:00:18]} 10. Qd2 {[%emt 0:00:29]} Bg7 {[%emt 0:00:07]} 11. g4 {[%emt 0:02:04]} Be6 {[%emt 0:01:02]} 12. Nd4 {[%emt 0:01:04]} Nxd4 {[%emt 0:00:38]} 13. Bxd4 {[%emt 0:00:06]} O-O {[%emt 0:01:46]} 14. h4 {[%emt 0:00:34]} h5 {[%emt 0:00:54]} 15. gxh5 {[%emt 0:00:53]} Nxh5 {[%emt 0:00:20]} 16. Bxg7 {[%emt 0:00:36]} Kxg7 {[%emt 0:00:02]} 17. Rg1 {[%emt 0:00:32]} Qb6 {[%emt 0:02:02]} 18. O-O-O {[%emt 0:00:20]} Rh8 {[%emt 0:02:25]} 19. f4 {[%emt 0:01:08]} Rac8 {[%emt 0:03:06]} 20. f5 {[%emt 0:00:34]} Bc4 {[%emt 0:01:05]} 21. Bxc4 {[%emt 0:01:54]} Rxc4 {[%emt 0:00:02]} 22. fxg6 {[%emt 0:00:01]} f6 {[%emt 0:00:58]} 23. Qd5 {[%emt 0:00:48]} Rc7 {[%emt 0:01:50]} 24. Qf7+ {[%emt 0:00:11]} Kh6 {[%emt 0:00:10]} 25. g7 {[%emt 0:00:10]} Nxg7 {[%emt 0:00:16]} 26. Qxg7+ {[%emt 0:00:06]} Kh5 {[%emt 0:00:01]} 27. Qxh8# {[%emt 0:00:02]} 1-0